[Event "Titled Tuesday Blitz August 31 2021"]
[White "Urazayev, Arystanbek"]
[Black "Navarro, Tiago Cunha"]
[WhiteFideId "13709810"]
[BlackFideId "2106280"]
[WhiteElo "2321"]
[BlackElo "2148"]
[Result "1-0"]
[Round "01"]
[TimeControl "180+1"]
[Date "2021.08.31"]
[WhiteClock "0:00:13"]
[BlackClock "0:00:14"]

1. e4 {[%clk 0:03:00]}  d5 {[%clk 0:02:59]} 2. exd5 {[%clk 0:03:00]}  Nf6 {[%clk 0:03:00]} 3. c4 {[%clk 0:03:01]}  c6 {[%clk 0:02:59]} 4. Nc3 {[%clk 0:03:01]}  cxd5 {[%clk 0:02:59]} 5. d4 {[%clk 0:03:02]}  Nc6 {[%clk 0:02:59]} 6. Nf3 {[%clk 0:03:03]}  Bg4 {[%clk 0:02:58]} 7. cxd5 {[%clk 0:03:03]}  Nxd5 {[%clk 0:02:58]} 8. Qb3 {[%clk 0:03:04]}  Bxf3 {[%clk 0:02:58]} 9. gxf3 {[%clk 0:03:05]}  Nb6 {[%clk 0:02:56]} 10. d5 {[%clk 0:03:03]}  Nd4 {[%clk 0:02:55]} 11. Qd1 {[%clk 0:02:17]}  e5 {[%clk 0:02:55]} 12. dxe6 {[%clk 0:02:01]}  fxe6 {[%clk 0:02:47]} 13. Be3 {[%clk 0:01:59]}  Nf5 {[%clk 0:02:42]} 14. Bb5+ {[%clk 0:01:58]}  Kf7 {[%clk 0:02:41]} 15. Qxd8 {[%clk 0:01:26]}  Rxd8 {[%clk 0:02:40]} 16. Ke2 {[%clk 0:01:06]}  Bb4 {[%clk 0:02:26]} 17. Ne4 {[%clk 0:00:56]}  Nxe3 {[%clk 0:02:23]} 18. fxe3 {[%clk 0:00:55]}  Rd5 {[%clk 0:02:13]} 19. Bd3 {[%clk 0:00:56]}  Rhd8 {[%clk 0:02:11]} 20. Rhd1 {[%clk 0:00:55]}  h6 {[%clk 0:02:04]} 21. Bc2 {[%clk 0:00:51]}  Be7 {[%clk 0:01:58]} 22. Bb3 {[%clk 0:00:49]}  Rxd1 {[%clk 0:01:56]} 23. Bxd1 {[%clk 0:00:49]}  e5 {[%clk 0:01:40]} 24. Bb3+ {[%clk 0:00:49]}  Kf8 {[%clk 0:01:40]} 25. Rc1 {[%clk 0:00:48]}  Rc8 {[%clk 0:01:39]} 26. Rg1 {[%clk 0:00:42]}  a6 {[%clk 0:01:32]} 27. Rg6 {[%clk 0:00:42]}  Rc6 {[%clk 0:01:28]} 28. Rxc6 {[%clk 0:00:40]}  bxc6 {[%clk 0:01:29]} 29. Kd3 {[%clk 0:00:40]}  Ke8 {[%clk 0:01:21]} 30. Ng3 {[%clk 0:00:34]}  Kd7 {[%clk 0:01:13]} 31. Ke4 {[%clk 0:00:34]}  Bf6 {[%clk 0:01:11]} 32. Ne2 {[%clk 0:00:20]}  Kd6 {[%clk 0:01:08]} 33. Ng3 {[%clk 0:00:18]}  Nd5 {[%clk 0:01:00]} 34. Bc4 {[%clk 0:00:15]}  a5 {[%clk 0:00:59]} 35. Kd3 {[%clk 0:00:10]}  g6 {[%clk 0:00:53]} 36. Ne4+ {[%clk 0:00:11]}  Ke7 {[%clk 0:00:50]} 37. Nxf6 {[%clk 0:00:06]}  Kxf6 {[%clk 0:00:51]} 38. Ke4 {[%clk 0:00:04]}  Ke6 {[%clk 0:00:49]} 39. a3 {[%clk 0:00:03]}  Kd6 {[%clk 0:00:49]} 40. Kd3 {[%clk 0:00:03]}  Ne7 {[%clk 0:00:46]} 41. Kd2 {[%clk 0:00:03]}  Kc5 {[%clk 0:00:44]} 42. Bd3 {[%clk 0:00:03]}  Kd5 {[%clk 0:00:43]} 43. Kc3 {[%clk 0:00:03]}  Kd6 {[%clk 0:00:40]} 44. b4 {[%clk 0:00:03]}  axb4+ {[%clk 0:00:39]} 45. Kxb4 {[%clk 0:00:03]}  g5 {[%clk 0:00:40]} 46. Be4 {[%clk 0:00:03]}  Nc8 {[%clk 0:00:35]} 47. a4 {[%clk 0:00:03]}  Na7 {[%clk 0:00:33]} 48. a5 {[%clk 0:00:04]}  c5+ {[%clk 0:00:32]} 49. Kc4 {[%clk 0:00:04]}  h5 {[%clk 0:00:31]} 50. a6 {[%clk 0:00:05]}  g4 {[%clk 0:00:29]} 51. fxg4 {[%clk 0:00:05]}  hxg4 {[%clk 0:00:30]} 52. Bf5 {[%clk 0:00:05]}  Nc6 {[%clk 0:00:26]} 53. Bxg4 {[%clk 0:00:06]}  e4 {[%clk 0:00:26]} 54. Bf5 {[%clk 0:00:06]}  Ne5+ {[%clk 0:00:21]} 55. Kb5 {[%clk 0:00:06]}  c4 {[%clk 0:00:21]} 56. a7 {[%clk 0:00:06]}  c3 {[%clk 0:00:13]} 57. Bxe4 {[%clk 0:00:07]}  c2 {[%clk 0:00:14]} 58. Bxc2 {[%clk 0:00:07]}  Nc6 {[%clk 0:00:14]} 59. a8=Q {[%clk 0:00:07]}  Ne5 {[%clk 0:00:15]} 60. e4 {[%clk 0:00:07]}  Ke6 {[%clk 0:00:16]} 61. Qd5+ {[%clk 0:00:07]}  Kf6 {[%clk 0:00:16]} 62. Bb3 {[%clk 0:00:08]}  Ng6 {[%clk 0:00:13]} 63. Qf5+ {[%clk 0:00:08]}  Kg7 {[%clk 0:00:13]} 64. Bf7 {[%clk 0:00:09]}  Ne7 {[%clk 0:00:13]} 65. Qe6 {[%clk 0:00:09]}  Kf8 {[%clk 0:00:12]} 66. h4 {[%clk 0:00:10]}  Nc8 {[%clk 0:00:10]} 67. Qxc8+ {[%clk 0:00:09]}  Kg7 {[%clk 0:00:10]} 68. Qf5 {[%clk 0:00:10]}  Kf8 {[%clk 0:00:10]} 69. e5 {[%clk 0:00:11]}  Kg7 {[%clk 0:00:11]} 70. e6 {[%clk 0:00:12]}  Kf8 {[%clk 0:00:11]} 71. h5 {[%clk 0:00:12]}  Ke7 {[%clk 0:00:12]} 72. h6 {[%clk 0:00:12]}  Kd6 {[%clk 0:00:12]} 73. h7 {[%clk 0:00:13]}  Ke7 {[%clk 0:00:13]} 74. h8=Q {[%clk 0:00:13]}  Kd6 {[%clk 0:00:14]} 75. Qd8# {[%clk 0:00:13]} 1-0


[Site "https://www.chess.com"]

[Event "Titled Tuesday Blitz August 31 2021"]
[White "Yanchenko, Roman"]
[Black "Gvanceladze, Anna"]
[WhiteFideId "4137329"]
[BlackFideId "4113721"]
[WhiteElo "2514"]
[BlackElo "1950"]
[Result "1/2-1/2"]
[Round "01"]
[TimeControl "180+1"]
[Date "2021.08.31"]
[WhiteClock "0:00:03"]
[BlackClock "0:00:18"]

1. d4 {[%clk 0:02:56]}  e6 {[%clk 0:02:58]} 2. c4 {[%clk 0:02:56]}  d5 {[%clk 0:02:58]} 3. Nf3 {[%clk 0:02:57]}  c6 {[%clk 0:02:57]} 4. Nc3 {[%clk 0:02:56]}  f5 {[%clk 0:02:52]} 5. Bg5 {[%clk 0:02:55]}  Nf6 {[%clk 0:02:52]} 6. e3 {[%clk 0:02:55]}  Be7 {[%clk 0:02:48]} 7. Rc1 {[%clk 0:02:53]}  O-O {[%clk 0:02:48]} 8. Bd3 {[%clk 0:02:53]}  Bd7 {[%clk 0:02:47]} 9. Ne5 {[%clk 0:02:51]}  Be8 {[%clk 0:02:43]} 10. O-O {[%clk 0:02:50]}  Nbd7 {[%clk 0:02:41]} 11. f4 {[%clk 0:02:48]}  Nxe5 {[%clk 0:02:39]} 12. fxe5 {[%clk 0:02:48]}  Ne4 {[%clk 0:02:40]} 13. Bxe7 {[%clk 0:02:48]}  Qxe7 {[%clk 0:02:40]} 14. Bxe4 {[%clk 0:02:44]}  fxe4 {[%clk 0:02:40]} 15. Rxf8+ {[%clk 0:02:42]}  Qxf8 {[%clk 0:02:40]} 16. c5 {[%clk 0:02:43]}  Bg6 {[%clk 0:02:34]} 17. b4 {[%clk 0:02:42]}  a6 {[%clk 0:02:34]} 18. a4 {[%clk 0:02:41]}  Qe7 {[%clk 0:02:32]} 19. Qg4 {[%clk 0:02:37]}  Rf8 {[%clk 0:02:17]} 20. Rf1 {[%clk 0:02:36]}  Bf5 {[%clk 0:02:08]} 21. Qg3 {[%clk 0:02:36]}  h6 {[%clk 0:02:05]} 22. h3 {[%clk 0:02:32]}  Qd8 {[%clk 0:02:02]} 23. Kh2 {[%clk 0:02:16]}  Qe7 {[%clk 0:02:02]} 24. Rf4 {[%clk 0:02:11]}  g5 {[%clk 0:01:56]} 25. Rf1 {[%clk 0:02:07]}  Bg6 {[%clk 0:01:56]} 26. Rxf8+ {[%clk 0:02:02]}  Qxf8 {[%clk 0:01:49]} 27. Qe1 {[%clk 0:02:03]}  Qf5 {[%clk 0:01:45]} 28. b5 {[%clk 0:01:59]}  axb5 {[%clk 0:01:44]} 29. axb5 {[%clk 0:01:59]}  g4 {[%clk 0:01:32]} 30. hxg4 {[%clk 0:01:55]}  Qxg4 {[%clk 0:01:32]} 31. b6 {[%clk 0:01:54]}  Qh5+ {[%clk 0:01:14]} 32. Kg1 {[%clk 0:01:53]}  Qg5 {[%clk 0:01:14]} 33. Qf2 {[%clk 0:01:48]}  Bf5 {[%clk 0:01:14]} 34. Na2 {[%clk 0:01:38]}  Qh5 {[%clk 0:01:09]} 35. Qg3+ {[%clk 0:01:29]}  Kf7 {[%clk 0:01:09]} 36. Qe1 {[%clk 0:01:29]}  Ke7 {[%clk 0:01:06]} 37. Nc1 {[%clk 0:01:25]}  Bg4 {[%clk 0:01:05]} 38. Nb3 {[%clk 0:01:22]}  Qg5 {[%clk 0:01:04]} 39. Qf2 {[%clk 0:01:13]}  Bf3 {[%clk 0:01:00]} 40. Na5 {[%clk 0:01:09]}  Kd7 {[%clk 0:00:32]} 41. Nxb7 {[%clk 0:01:08]}  Kc8 {[%clk 0:00:33]} 42. Nd6+ {[%clk 0:01:03]}  Kb8 {[%clk 0:00:33]} 43. Kf1 {[%clk 0:01:00]}  Qg4 {[%clk 0:00:31]} 44. Ke1 {[%clk 0:00:24]}  h5 {[%clk 0:00:28]} 45. Kf1 {[%clk 0:00:17]}  h4 {[%clk 0:00:28]} 46. Ke1 {[%clk 0:00:08]}  h3 {[%clk 0:00:27]} 47. gxh3 {[%clk 0:00:07]}  Qxh3 {[%clk 0:00:27]} 48. Kd2 {[%clk 0:00:07]}  Qh1 {[%clk 0:00:27]} 49. Kc2 {[%clk 0:00:05]}  Qa1 {[%clk 0:00:24]} 50. Qg3 {[%clk 0:00:01]}  Qa2+ {[%clk 0:00:19]} 51. Kc1 {[%clk 0:00:02]}  Qa1+ {[%clk 0:00:18]} 52. Kc2 {[%clk 0:00:02]}  Qa2+ {[%clk 0:00:18]} 53. Kc3 {[%clk 0:00:03]}  Qa3+ {[%clk 0:00:18]} 54. Kc2 {[%clk 0:00:03]}  Qa2+ {[%clk 0:00:18]} 1/2-1/2


[Site "https://www.chess.com"]

[Event "Titled Tuesday Blitz August 31 2021"]
[White "Zierk, Steven"]
[Black "Odegov, Artem"]
[WhiteFideId "2034255"]
[BlackFideId "34183644"]
[WhiteElo "2494"]
[BlackElo "2257"]
[Result "1-0"]
[Round "01"]
[TimeControl "180+1"]
[Date "2021.08.31"]
[WhiteClock "0:00:13"]
[BlackClock "0:00:05"]

1. b3 {[%clk 0:03:00]}  Nf6 {[%clk 0:02:55]} 2. Bb2 {[%clk 0:03:00]}  g6 {[%clk 0:02:55]} 3. Nf3 {[%clk 0:02:58]}  Bg7 {[%clk 0:02:55]} 4. g3 {[%clk 0:02:59]}  O-O {[%clk 0:02:54]} 5. Bg2 {[%clk 0:02:59]}  d6 {[%clk 0:02:55]} 6. d4 {[%clk 0:03:00]}  Nbd7 {[%clk 0:02:54]} 7. O-O {[%clk 0:03:00]}  c5 {[%clk 0:02:54]} 8. c4 {[%clk 0:02:58]}  Rb8 {[%clk 0:02:48]} 9. Nc3 {[%clk 0:02:56]}  a6 {[%clk 0:02:44]} 10. a4 {[%clk 0:02:51]}  Qa5 {[%clk 0:02:41]} 11. Qd2 {[%clk 0:02:44]}  cxd4 {[%clk 0:02:15]} 12. Nxd4 {[%clk 0:02:38]}  Nc5 {[%clk 0:02:09]} 13. Ba3 {[%clk 0:02:28]}  Qc7 {[%clk 0:02:07]} 14. b4 {[%clk 0:02:23]}  Ne6 {[%clk 0:02:06]} 15. Rac1 {[%clk 0:02:18]}  Qxc4 {[%clk 0:01:52]} 16. e3 {[%clk 0:02:08]}  Nxd4 {[%clk 0:01:32]} 17. exd4 {[%clk 0:02:08]}  Qb3 {[%clk 0:01:24]} 18. Ra1 {[%clk 0:01:59]}  Bf5 {[%clk 0:01:23]} 19. Rfe1 {[%clk 0:01:28]}  Rfc8 {[%clk 0:01:22]} 20. Re3 {[%clk 0:01:28]}  Ng4 {[%clk 0:00:48]} 21. Bd5 {[%clk 0:01:09]}  Rc4 {[%clk 0:00:46]} 22. Rf3 {[%clk 0:01:00]}  Bh6 {[%clk 0:00:33]} 23. Qe2 {[%clk 0:00:49]}  Qxc3 {[%clk 0:00:17]} 24. Rxc3 {[%clk 0:00:46]}  Rxc3 {[%clk 0:00:18]} 25. Qxe7 {[%clk 0:00:45]}  Bg7 {[%clk 0:00:12]} 26. Bxf7+ {[%clk 0:00:38]}  Kh8 {[%clk 0:00:12]} 27. Qxd6 {[%clk 0:00:39]}  Rbc8 {[%clk 0:00:09]} 28. Be6 {[%clk 0:00:31]}  R3c6 {[%clk 0:00:07]} 29. Bxf5 {[%clk 0:00:31]}  Rxd6 {[%clk 0:00:07]} 30. Bxc8 {[%clk 0:00:31]}  Rxd4 {[%clk 0:00:07]} 31. Bxb7 {[%clk 0:00:29]}  Rd7 {[%clk 0:00:04]} 32. Rc1 {[%clk 0:00:21]}  Bd4 {[%clk 0:00:03]} 33. Bc8 {[%clk 0:00:21]}  Nxf2 {[%clk 0:00:02]} 34. Kg2 {[%clk 0:00:17]}  Re7 {[%clk 0:00:02]} 35. Rc4 {[%clk 0:00:16]}  Ba7 {[%clk 0:00:03]} 36. Bb2+ {[%clk 0:00:15]}  Kg8 {[%clk 0:00:02]} 37. Rc6 {[%clk 0:00:14]}  Nd3 {[%clk 0:00:02]} 38. Be6+ {[%clk 0:00:14]}  Kf8 {[%clk 0:00:01]} 39. Bf6 {[%clk 0:00:13]}  Re8 {[%clk 0:00:02]} 40. Rxa6 {[%clk 0:00:13]}  Ne1+ {[%clk 0:00:02]} 41. Kh3 {[%clk 0:00:12]}  Be3 {[%clk 0:00:03]} 42. b5 {[%clk 0:00:12]}  Nf3 {[%clk 0:00:03]} 43. Rc6 {[%clk 0:00:12]}  Ng5+ {[%clk 0:00:03]} 44. Bxg5 {[%clk 0:00:12]}  Bxg5 {[%clk 0:00:04]} 45. b6 {[%clk 0:00:13]}  Be3 {[%clk 0:00:05]} 46. b7 {[%clk 0:00:13]}  Ba7 {[%clk 0:00:05]} 47. a5 {[%clk 0:00:13]}  Rxe6 {[%clk 0:00:05]} 48. Rxe6 {[%clk 0:00:13]} 1-0


[Site "https://www.chess.com"]

[Event "Titled Tuesday Blitz August 31 2021"]
[White "Alavkin, Arseny"]
[Black "Timofeev, Artyom"]
[WhiteFideId "4120612"]
[BlackFideId "4140419"]
[WhiteElo "2391"]
[BlackElo "2582"]
[Result "0-1"]
[Round "02"]
[TimeControl "180+1"]
[Date "2021.08.31"]
[WhiteClock "0:00:49"]
[BlackClock "0:01:23"]

1. d4 {[%clk 0:03:00]}  Nf6 {[%clk 0:02:59]} 2. Bf4 {[%clk 0:03:00]}  g6 {[%clk 0:02:56]} 3. Nc3 {[%clk 0:03:00]}  Bg7 {[%clk 0:02:56]} 4. e4 {[%clk 0:03:00]}  d6 {[%clk 0:02:56]} 5. Nf3 {[%clk 0:03:00]}  O-O {[%clk 0:02:55]} 6. Qd2 {[%clk 0:03:01]}  a6 {[%clk 0:02:54]} 7. O-O-O {[%clk 0:02:57]}  b5 {[%clk 0:02:53]} 8. e5 {[%clk 0:02:58]}  b4 {[%clk 0:02:51]} 9. Ne2 {[%clk 0:02:42]}  dxe5 {[%clk 0:02:50]} 10. dxe5 {[%clk 0:02:42]}  Qxd2+ {[%clk 0:02:49]} 11. Bxd2 {[%clk 0:02:37]}  Nd5 {[%clk 0:02:47]} 12. Nf4 {[%clk 0:02:33]}  Nxf4 {[%clk 0:02:45]} 13. Bxf4 {[%clk 0:02:34]}  Bb7 {[%clk 0:02:46]} 14. Bc4 {[%clk 0:02:29]}  e6 {[%clk 0:02:43]} 15. Bb3 {[%clk 0:02:22]}  a5 {[%clk 0:02:41]} 16. Bc4 {[%clk 0:02:12]}  Na6 {[%clk 0:02:35]} 17. Bxa6 {[%clk 0:02:06]}  Rxa6 {[%clk 0:02:34]} 18. Rd7 {[%clk 0:02:06]}  Bxf3 {[%clk 0:02:06]} 19. gxf3 {[%clk 0:02:05]}  Rc6 {[%clk 0:02:07]} 20. Re1 {[%clk 0:01:54]}  h5 {[%clk 0:02:04]} 21. h4 {[%clk 0:01:51]}  Kh7 {[%clk 0:02:03]} 22. Re4 {[%clk 0:01:51]}  Bh6 {[%clk 0:02:01]} 23. Bxh6 {[%clk 0:01:51]}  Kxh6 {[%clk 0:02:01]} 24. Rf4 {[%clk 0:01:44]}  Kg7 {[%clk 0:02:01]} 25. Rfd4 {[%clk 0:01:44]}  g5 {[%clk 0:01:54]} 26. hxg5 {[%clk 0:01:36]}  Kg6 {[%clk 0:01:54]} 27. f4 {[%clk 0:01:25]}  Kf5 {[%clk 0:01:54]} 28. Rd8 {[%clk 0:01:08]}  Rxd8 {[%clk 0:01:53]} 29. Rxd8 {[%clk 0:01:09]}  Kxf4 {[%clk 0:01:54]} 30. Rf8 {[%clk 0:01:09]}  Kxg5 {[%clk 0:01:52]} 31. Rxf7 {[%clk 0:01:09]}  h4 {[%clk 0:01:53]} 32. f4+ {[%clk 0:01:09]}  Kg4 {[%clk 0:01:53]} 33. Rh7 {[%clk 0:01:06]}  h3 {[%clk 0:01:48]} 34. Kd2 {[%clk 0:01:04]}  Rc4 {[%clk 0:01:46]} 35. f5 {[%clk 0:00:59]}  exf5 {[%clk 0:01:35]} 36. e6 {[%clk 0:00:59]}  Re4 {[%clk 0:01:35]} 37. e7 {[%clk 0:00:59]}  f4 {[%clk 0:01:35]} 38. Kd3 {[%clk 0:00:57]}  Re6 {[%clk 0:01:33]} 39. Kd4 {[%clk 0:00:53]}  f3 {[%clk 0:01:29]} 40. Kd5 {[%clk 0:00:50]}  Re1 {[%clk 0:01:28]} 41. Rg7+ {[%clk 0:00:50]}  Kf4 {[%clk 0:01:28]} 42. Rf7+ {[%clk 0:00:51]}  Kg3 {[%clk 0:01:28]} 43. Rg7+ {[%clk 0:00:51]}  Kf2 {[%clk 0:01:28]} 44. Rh7 {[%clk 0:00:51]}  Kg2 {[%clk 0:01:27]} 45. Rg7+ {[%clk 0:00:52]}  Kf1 {[%clk 0:01:24]} 46. Rh7 {[%clk 0:00:52]}  f2 {[%clk 0:01:25]} 47. Rxh3 {[%clk 0:00:52]}  Rxe7 {[%clk 0:01:24]} 48. Kc5 {[%clk 0:00:51]}  Kg2 {[%clk 0:01:24]} 49. Rh7 {[%clk 0:00:49]}  Rxh7 {[%clk 0:01:23]} 0-1


[Site "https://www.chess.com"]

[Event "Titled Tuesday Blitz August 31 2021"]
[White "Aldokhin, Ivan"]
[Black "Eljanov, Pavel"]
[WhiteFideId "24115720"]
[BlackFideId "14102951"]
[WhiteElo "2306"]
[BlackElo "2602"]
[Result "0-1"]
[Round "02"]
[TimeControl "180+1"]
[Date "2021.08.31"]
[WhiteClock "0:00:08"]
[BlackClock "0:00:58"]

1. e4 {[%clk 0:02:59]}  c6 {[%clk 0:02:59]} 2. Nc3 {[%clk 0:02:59]}  d5 {[%clk 0:03:00]} 3. Nf3 {[%clk 0:02:59]}  dxe4 {[%clk 0:03:00]} 4. Nxe4 {[%clk 0:02:59]}  Nf6 {[%clk 0:03:00]} 5. Nxf6+ {[%clk 0:02:56]}  exf6 {[%clk 0:03:00]} 6. d4 {[%clk 0:02:57]}  Bd6 {[%clk 0:03:00]} 7. Be2 {[%clk 0:02:57]}  O-O {[%clk 0:03:00]} 8. Be3 {[%clk 0:02:57]}  Re8 {[%clk 0:03:00]} 9. O-O {[%clk 0:02:53]}  Na6 {[%clk 0:02:54]} 10. Qd2 {[%clk 0:02:49]}  Nc7 {[%clk 0:02:52]} 11. c4 {[%clk 0:02:49]}  a5 {[%clk 0:02:49]} 12. Rfd1 {[%clk 0:02:48]}  Be6 {[%clk 0:02:42]} 13. Rac1 {[%clk 0:02:45]}  Qd7 {[%clk 0:02:34]} 14. d5 {[%clk 0:02:39]}  cxd5 {[%clk 0:02:34]} 15. Nd4 {[%clk 0:02:33]}  Bg4 {[%clk 0:02:26]} 16. cxd5 {[%clk 0:02:17]}  Bb4 {[%clk 0:02:13]} 17. Bxg4 {[%clk 0:01:14]}  Qxg4 {[%clk 0:02:12]} 18. Rxc7 {[%clk 0:01:13]}  Bxd2 {[%clk 0:02:10]} 19. Rxd2 {[%clk 0:01:13]}  Rac8 {[%clk 0:02:04]} 20. d6 {[%clk 0:01:11]}  Red8 {[%clk 0:01:55]} 21. h3 {[%clk 0:00:57]}  Qe4 {[%clk 0:01:46]} 22. Rdc2 {[%clk 0:00:41]}  Rb8 {[%clk 0:01:41]} 23. d7 {[%clk 0:00:33]}  Qd5 {[%clk 0:01:26]} 24. R2c5 {[%clk 0:00:33]}  Qd6 {[%clk 0:01:22]} 25. Nf5 {[%clk 0:00:31]}  Qd1+ {[%clk 0:01:21]} 26. Kh2 {[%clk 0:00:31]}  Rxd7 {[%clk 0:01:18]} 27. Bf4 {[%clk 0:00:12]}  Rxc7 {[%clk 0:01:16]} 28. Rxc7 {[%clk 0:00:12]}  Rd8 {[%clk 0:01:00]} 29. Nd6 {[%clk 0:00:08]}  Rxd6 {[%clk 0:00:58]} 0-1


[Site "https://www.chess.com"]

[Event "Titled Tuesday Blitz August 31 2021"]
[White "Andreikin, Dmitry"]
[Black "Iskusnyh, Sergei"]
[WhiteFideId "4158814"]
[BlackFideId "4120027"]
[WhiteElo "2782"]
[BlackElo "2492"]
[Result "1-0"]
[Round "02"]
[TimeControl "180+1"]
[Date "2021.08.31"]
[WhiteClock "0:00:53"]
[BlackClock "0:00:10"]

1. Nf3 {[%clk 0:03:00]}  d5 {[%clk 0:02:58]} 2. d4 {[%clk 0:03:00]}  Nf6 {[%clk 0:02:57]} 3. c4 {[%clk 0:03:00]}  c6 {[%clk 0:02:57]} 4. Nc3 {[%clk 0:02:58]}  a6 {[%clk 0:02:56]} 5. g3 {[%clk 0:02:53]}  e6 {[%clk 0:02:24]} 6. Bg2 {[%clk 0:02:53]}  Nbd7 {[%clk 0:02:22]} 7. O-O {[%clk 0:02:52]}  dxc4 {[%clk 0:02:17]} 8. e4 {[%clk 0:02:51]}  Be7 {[%clk 0:02:16]} 9. a4 {[%clk 0:02:45]}  a5 {[%clk 0:02:08]} 10. Qe2 {[%clk 0:02:30]}  b6 {[%clk 0:02:08]} 11. Rd1 {[%clk 0:02:24]}  O-O {[%clk 0:01:40]} 12. Qxc4 {[%clk 0:02:24]}  Ba6 {[%clk 0:01:39]} 13. Qb3 {[%clk 0:02:24]}  Bb4 {[%clk 0:01:39]} 14. Bg5 {[%clk 0:02:05]}  h6 {[%clk 0:01:34]} 15. Bxf6 {[%clk 0:02:05]}  Qxf6 {[%clk 0:01:33]} 16. e5 {[%clk 0:02:02]}  Qe7 {[%clk 0:01:16]} 17. Ne4 {[%clk 0:02:02]}  Rac8 {[%clk 0:01:02]} 18. Qe3 {[%clk 0:01:57]}  b5 {[%clk 0:00:46]} 19. Bf1 {[%clk 0:01:42]}  Bb7 {[%clk 0:00:45]} 20. Rac1 {[%clk 0:01:19]}  bxa4 {[%clk 0:00:44]} 21. Nc5 {[%clk 0:01:19]}  Nb6 {[%clk 0:00:38]} 22. Qe4 {[%clk 0:01:14]}  Nd5 {[%clk 0:00:37]} 23. Bd3 {[%clk 0:01:14]}  f5 {[%clk 0:00:31]} 24. exf6 {[%clk 0:01:10]}  Qxf6 {[%clk 0:00:29]} 25. Qh7+ {[%clk 0:01:06]}  Kf7 {[%clk 0:00:29]} 26. Ne5+ {[%clk 0:01:02]}  Ke8 {[%clk 0:00:22]} 27. Qg6+ {[%clk 0:01:01]}  Kd8 {[%clk 0:00:14]} 28. Nxb7+ {[%clk 0:00:55]}  Kc7 {[%clk 0:00:13]} 29. Rxc6+ {[%clk 0:00:55]}  Kxb7 {[%clk 0:00:12]} 30. Ba6+ {[%clk 0:00:55]}  Kb8 {[%clk 0:00:10]} 31. Rxc8+ {[%clk 0:00:53]} 1-0


[Site "https://www.chess.com"]

[Event "Titled Tuesday Blitz August 31 2021"]
[White "Arabidze, Meri"]
[Black "Semcesen, Daniel"]
[WhiteFideId "13604040"]
[BlackFideId "1706993"]
[WhiteElo "2432"]
[BlackElo "2505"]
[Result "1-0"]
[Round "02"]
[TimeControl "180+1"]
[Date "2021.08.31"]
[WhiteClock "0:00:27"]
[BlackClock "0:00:01"]

1. Nf3 {[%clk 0:03:00]}  Nf6 {[%clk 0:02:57]} 2. d4 {[%clk 0:03:01]}  e6 {[%clk 0:02:55]} 3. c4 {[%clk 0:03:02]}  b6 {[%clk 0:02:54]} 4. Nc3 {[%clk 0:03:01]}  Bb7 {[%clk 0:02:53]} 5. Qc2 {[%clk 0:03:01]}  Bb4 {[%clk 0:02:51]} 6. e3 {[%clk 0:03:01]}  O-O {[%clk 0:02:49]} 7. Bd3 {[%clk 0:03:01]}  d5 {[%clk 0:02:47]} 8. cxd5 {[%clk 0:03:02]}  exd5 {[%clk 0:02:46]} 9. O-O {[%clk 0:03:02]}  a6 {[%clk 0:02:43]} 10. Ne5 {[%clk 0:03:02]}  Nbd7 {[%clk 0:02:37]} 11. f4 {[%clk 0:03:02]}  Re8 {[%clk 0:02:33]} 12. Bd2 {[%clk 0:03:02]}  Bd6 {[%clk 0:02:32]} 13. Be1 {[%clk 0:03:02]}  h6 {[%clk 0:02:10]} 14. Bh4 {[%clk 0:03:00]}  Be7 {[%clk 0:02:10]} 15. Bf5 {[%clk 0:02:55]}  Nxe5 {[%clk 0:01:28]} 16. fxe5 {[%clk 0:02:53]}  Ne4 {[%clk 0:01:28]} 17. Bxe7 {[%clk 0:02:51]}  Qxe7 {[%clk 0:01:25]} 18. Nxe4 {[%clk 0:02:51]}  dxe4 {[%clk 0:01:25]} 19. Bxe4 {[%clk 0:02:52]}  Bxe4 {[%clk 0:01:24]} 20. Qxe4 {[%clk 0:02:53]}  c5 {[%clk 0:01:24]} 21. Rf2 {[%clk 0:02:50]}  Ra7 {[%clk 0:01:19]} 22. Raf1 {[%clk 0:02:49]}  Qe6 {[%clk 0:01:19]} 23. Rf5 {[%clk 0:02:41]}  cxd4 {[%clk 0:01:11]} 24. exd4 {[%clk 0:02:42]}  Rd7 {[%clk 0:01:08]} 25. b3 {[%clk 0:02:35]}  Red8 {[%clk 0:01:03]} 26. Qf3 {[%clk 0:02:11]}  Rxd4 {[%clk 0:00:57]} 27. Rxf7 {[%clk 0:02:11]}  Qxe5 {[%clk 0:00:56]} 28. Ra7 {[%clk 0:02:10]}  R4d7 {[%clk 0:00:30]} 29. Rxa6 {[%clk 0:02:10]}  Qc5+ {[%clk 0:00:30]} 30. Kh1 {[%clk 0:02:09]}  Qb5 {[%clk 0:00:24]} 31. Ra4 {[%clk 0:02:08]}  Rd2 {[%clk 0:00:17]} 32. h3 {[%clk 0:02:05]}  Kh8 {[%clk 0:00:17]} 33. Qf5 {[%clk 0:01:53]}  Qe2 {[%clk 0:00:15]} 34. Rg4 {[%clk 0:01:46]}  Rxa2 {[%clk 0:00:12]} 35. Qf7 {[%clk 0:01:45]}  Rg8 {[%clk 0:00:12]} 36. b4 {[%clk 0:01:22]}  Rd2 {[%clk 0:00:11]} 37. Rg3 {[%clk 0:01:15]}  Rd1 {[%clk 0:00:10]} 38. Rxd1 {[%clk 0:01:14]}  Qxd1+ {[%clk 0:00:11]} 39. Kh2 {[%clk 0:01:15]}  Qd6 {[%clk 0:00:11]} 40. b5 {[%clk 0:01:13]}  Qe5 {[%clk 0:00:08]} 41. Qd7 {[%clk 0:01:07]}  Rb8 {[%clk 0:00:05]} 42. h4 {[%clk 0:01:03]}  Rf8 {[%clk 0:00:03]} 43. Kh3 {[%clk 0:01:02]}  Qf5+ {[%clk 0:00:02]} 44. Qxf5 {[%clk 0:01:02]}  Rxf5 {[%clk 0:00:03]} 45. Rb3 {[%clk 0:01:02]}  Rc5 {[%clk 0:00:03]} 46. g4 {[%clk 0:01:02]}  Kh7 {[%clk 0:00:04]} 47. Kg3 {[%clk 0:01:01]}  Kg6 {[%clk 0:00:03]} 48. Rb4 {[%clk 0:01:01]}  Kf6 {[%clk 0:00:04]} 49. Kf4 {[%clk 0:01:01]}  Ke6 {[%clk 0:00:04]} 50. g5 {[%clk 0:01:00]}  g6 {[%clk 0:00:04]} 51. gxh6 {[%clk 0:01:00]}  Rh5 {[%clk 0:00:05]} 52. Re4+ {[%clk 0:01:00]}  Kf6 {[%clk 0:00:04]} 53. Kg4 {[%clk 0:00:59]}  Rxh6 {[%clk 0:00:05]} 54. Rc4 {[%clk 0:00:59]}  Rh5 {[%clk 0:00:04]} 55. Rc6+ {[%clk 0:00:59]}  Kg7 {[%clk 0:00:04]} 56. Rxb6 {[%clk 0:01:00]}  Rc5 {[%clk 0:00:05]} 57. Rb8 {[%clk 0:00:58]}  Rc4+ {[%clk 0:00:04]} 58. Kg3 {[%clk 0:00:58]}  Rb4 {[%clk 0:00:04]} 59. b6 {[%clk 0:00:58]}  Kh7 {[%clk 0:00:04]} 60. Kf3 {[%clk 0:00:52]}  Kg7 {[%clk 0:00:04]} 61. Ke3 {[%clk 0:00:52]}  Kh7 {[%clk 0:00:04]} 62. Kd3 {[%clk 0:00:52]}  Rxh4 {[%clk 0:00:03]} 63. Kc3 {[%clk 0:00:49]}  Rh1 {[%clk 0:00:02]} 64. Kc4 {[%clk 0:00:40]}  Rb1 {[%clk 0:00:02]} 65. Kc5 {[%clk 0:00:40]}  Kh6 {[%clk 0:00:02]} 66. Rh8+ {[%clk 0:00:35]}  Kg5 {[%clk 0:00:02]} 67. Kc6 {[%clk 0:00:32]}  Kf4 {[%clk 0:00:01]} 68. b7 {[%clk 0:00:32]}  g5 {[%clk 0:00:02]} 69. Rf8+ {[%clk 0:00:28]}  Ke3 {[%clk 0:00:01]} 70. Rf5 {[%clk 0:00:27]} 1-0


[Site "https://www.chess.com"]